Cogmind - Beta 14 --- EXPLORER MODE // 2024.09.20 @ 01:54:39 Player: JustYourOrdinaryPerson Result: Destroyed by G-67 Veteran with Field Laser Performance ------------- Evolutions (5) 2500 Regions Visited (11) 2200 Robots Destroyed (38) 190 Value Destroyed (1933) 1933 Prototype IDs (4) 80 Alien Tech Used (0) 0 Bonus (2433) 2433 TOTAL SCORE: 9336 Bonus ------- Pacifist 200 Follower Combat Kills 373 Met Imprinter 300 Was Imprinted 300 Met Warlord at Base 500 MAIN.C Attacked Warlord 500 Warlord Defense Kills 274 Friendly Fire -14 Cogmind --------- Core Integrity 0/1000 Matter 300/300 Energy 100/100 System Corruption 1% Temperature Cool (12) Movement Core (200) Ox3 Location -4/Proximity Caves Parts ------- > --- POWER (4) -------- (None) > --- PROPULSION (5) --- (None) > --- UTILITY (5) ------ Medium Storage Unit Improved Signal Interpreter > --- WEAPON (4) ------- (None) > --- INVENTORY (10) --- Zionite Biocell (600) Triangulator Core Analyzer Hardened Light Armor Plating Advanced Shield Generator Minesniffer Drone Bay Heavy Riot Gun Zionite Laser-S Self-destruct Interrupter (50) Peak State ------------ > --- POWER ------------ Light Angular Momentum Engine Neutrino Core Micro Fission Core Micro Fission Core > --- PROPULSION ------- Improved Titanium Leg Armored Leg Armored Leg Armored Leg Armored Leg > --- UTILITY ---------- Zionite Biocell Advanced Visual Processing Unit Improved Signal Interpreter Advanced Terrain Scan Processor Hardened Light Armor Plating > --- WEAPON ----------- Field Laser Beamcaster Zionite Laser-S Remote Datajack > --- INVENTORY -------- Light Ion Engine Medium Storage Unit Triangulator Advanced Shield Generator Heavy Riot Gun [Rating: 84] Favorites ----------- Power Micro Fission Core Engine Improved Deuterium Engine Power Core Micro Fission Core Propulsion Improved Aluminum Leg Leg Improved Aluminum Leg Utility Advanced Terrain Scan Processor Device Improved Heat Sink Storage Medium Storage Unit Processor Advanced Terrain Scan Processor Protection Hardened Light Armor Plating Weapon Thermic Laser Energy Gun Thermic Laser Energy Cannon Light EM Pulse Cannon Ballistic Gun Gauss Rifle Special Weapon Remote Datajack Build | -11 -10 -9 -9 -7 -6 -6 -5 -5 -5 -5 -4 ------- Run | Yrd Mat Mat Min Zio Pro Fac Fac Upp Upp War Pro Slots Evolved 11 | . 1 2 . . . 6 2 . . . . Power 3 | . . 1 . . . 2 . . . . . Propulsion 3 | . 1 . . . . 1 1 . . . . Utility 3 | . . . . . . 2 1 . . . . Weapon 2 | . . 1 . . . 1 . . . . . Parts Attached 71 | 7 . 3 10 2 7 16 11 10 . 4 1 Power 13 | 2 . 1 1 1 1 3 4 . . . . Engine 9 | 2 . 1 1 1 1 2 1 . . . . Core 4 | . . . . . . 1 3 . . . . Reactor . | . . . . . . . . . . . . Propulsion 15 | 2 . 1 3 . 1 2 4 2 . . . Treads . | . . . . . . . . . . . . Leg 15 | 2 . 1 3 . 1 2 4 2 . . . Wheel . | . . . . . . . . . . . . Hover . | . . . . . . . . . . . . Flight . | . . . . . . . . . . . . Utility 22 | 1 . . 4 1 1 8 3 4 . . . Device 8 | . . . 1 . 1 3 1 2 . . . Storage 7 | . . . 3 . . 1 1 2 . . . Processor 5 | 1 . . . 1 . 3 . . . . . Hackware . | . . . . . . . . . . . . Protection 2 | . . . . . . 1 1 . . . . Artifact . | . . . . . . . . . . . . Weapon 21 | 2 . 1 2 . 4 3 . 4 . 4 1 Energy Gun 12 | 2 . 1 . . 2 2 . 3 . 2 . Energy Cannon 2 | . . . 1 . . . . 1 . . . Ballistic Gun 2 | . . . 1 . 1 . . . . . . Ballistic Cannon . | . . . . . . . . . . . . Launcher . | . . . . . . . . . . . . Special Weapon 5 | . . . . . 1 1 . . . 2 1 Impact Weapon . | . . . . . . . . . . . . Slashing Weapon . | . . . . . . . . . . . . Piercing Weapon . | . . . . . . . . . . . . Special Melee Weapon . | . . . . . . . . . . . . Unidentified Prototypes 4 | . . . 1 . . . . 2 . 1 . Parts Lost 33 | . . 1 . . . 12 . 1 4 2 13 Power 8 | . . . . . . 4 . . 1 . 3 Propulsion 8 | . . . . . . 3 . . . . 5 Utility 6 | . . 1 . . . 2 . . . . 3 Weapon 11 | . . . . . . 3 . 1 3 2 2 Highest Loss Streak 11 | . . 1 . . . 10 . 1 4 2 11 To Critical Strikes . | . . . . . . . . . . . . Average Slot Usage (%) 92 | . 75 68 99 100 100 96 77 99 99 87 50 Engine 13 | . 12 15 20 20 20 23 4 5 5 5 1 Core 5 | . . . . . . . 14 16 15 11 5 Leg 26 | . 25 24 30 30 30 23 23 27 27 27 11 Device 5 | . . . 2 10 10 7 1 3 5 5 3 Storage 4 | . . . 16 6 . 2 . 3 5 5 5 Processor 10 | . 12 4 . 3 10 12 16 16 16 16 8 Energy Gun 12 | . 25 25 26 10 10 6 5 15 15 10 7 Energy Cannon 3 | . . . . 10 10 4 . 2 5 . . Ballistic Gun 3 | . . . 2 10 10 5 . . . . . Special Weapon 2 | . . . . . . 6 5 2 . 4 3 Peak Build Rating 84 | 6 6 10 25 32 38 58 74 84 81 83 76 Average Rating 51 | 4 6 7 18 28 34 54 64 80 80 73 44 On Entrance 35 | . 6 6 10 25 32 33 24 74 81 61 76 Naked Turns . | . . . . . . . . . . . . Heaviest Build 65 | 9 9 17 27 32 31 61 56 65 65 52 47 Greatest Support 87 | 20 20 33 39 39 41 57 84 87 71 71 71 Greatest Overweight (x) 7 | . . . . . . 2 2 1 1 . 7 Average Overweight (x) . | . . . . . . . . . . . 1 Largest Inventory Capacity 10 | 5 5 5 5 5 5 10 10 10 10 10 10 Average Capacity 7 | 5 5 5 5 5 5 7 5 8 10 10 10 Most Carried 10 | 2 2 2 5 5 5 5 4 8 8 10 10 Average Carried 5 | . 2 2 4 4 5 2 3 6 8 9 9 Final Capacity 10 | 5 5 5 5 5 5 5 5 10 10 10 10 Final Carried 10 | 2 2 2 5 5 5 4 4 8 8 10 9 Class Distribution -------------------- 52% | Hacker-Skirmisher 13% | Hacker-Mutant 10% | Hacker-Gunner 6% | Scavenger-Skirmisher 6% | Scavenger-Tank 3% | Generator-Mutant Dominant Class ---------------- Hacker-Mutant | -10/Materials Hacker-Gunner | -9/Materials Hacker-Gunner | -9/Mines Hacker-Skirmisher | -7/Zion Hacker-Skirmisher | -6/Proximity Caves Hacker-Skirmisher | -6/Factory Generator-Mutant | -5/Factory Scavenger-Skirmisher | -5/Upper Caves Hacker-Skirmisher | -5/Upper Caves Hacker-Skirmisher | -5/Warlord Hacker-Mutant | -4/Proximity Caves Resources | -11 -10 -9 -9 -7 -6 -6 -5 -5 -5 -5 -4 ----------- Run | Yrd Mat Mat Min Zio Pro Fac Fac Upp Upp War Pro Matter Collected 1286 | 218 . 78 254 20 150 235 80 221 . 30 . Remotely . | . . . . . . . . . . . . Salvage Created 1513 | . . 206 67 . 375 235 . 225 110 115 180 Parts 68 | . . 9 6 . 24 11 . 5 5 7 1 Haulers Intercepted . | . . . . . . . . . . . . Recyclers Shooed . | . . . . . . . . . . . . Parts Field Recycled . | . . . . . . . . . . . . Retrieved Matter . | . . . . . . . . . . . . Parts Self-Destructed . | . . . . . . . . . . . . Prevented . | . . . . . . . . . . . . Kills | -11 -10 -9 -9 -7 -6 -6 -5 -5 -5 -5 -4 ------- Run | Yrd Mat Mat Min Zio Pro Fac Fac Upp Upp War Pro Combat Hostiles Destroyed 36 | . . 5 2 . 8 4 . 4 4 2 7 Guns 22 | . . 4 1 . 4 3 . 3 3 2 2 Cannons 6 | . . . 1 . 4 . . . 1 . . AOE 5 | . . . . . . . . . . . 5 Classes Destroyed 8 | . . 2 2 . 2 . . . . . 2 Worker 2 | . . . 2 . . . . . . . . Swarmer 9 | . . . 2 . 3 . . . 4 . . Grunt 13 | . . 4 . . 2 1 . 3 . 1 2 Brawler 1 | . . . . . . . . . . . 1 Duelist 1 | . . . . . . . . . . . 1 Sentry 4 | . . 1 . . 1 1 . . . . 1 Hunter 3 | . . . . . 1 . . . . . 2 Programmer 5 | . . . . . 1 2 . 1 . 1 . Best Kill Streak 5 | . . 3 3 . 3 1 . 3 4 1 5 Combat Bots Only 5 | . . 3 2 . 3 1 . 3 4 1 5 Max Kills in Single Turn 3 | . . 1 2 . 1 1 . 1 2 1 3 Gunslinging . | . . . . . . . . . . . . Exploded 3 | . . . . . . . . . . . 3 Melee . | . . . . . . . . . . . . Uniques/NPCs Destroyed . | . . . . . . . . . . . . Combat | -11 -10 -9 -9 -7 -6 -6 -5 -5 -5 -5 -4 -------- Run | Yrd Mat Mat Min Zio Pro Fac Fac Upp Upp War Pro Hostile Shots Fired 717 | . 17 71 4 . 45 203 9 45 58 131 134 Missed 257 | . 8 34 1 . 12 71 3 15 21 59 33 Damage Taken 5115 | . 49 258 16 . 288 1347 67 703 349 823 1215 Core 1326 | . 13 34 . . 59 212 9 347 . 190 462 Absorbed by Shields . | . . . . . . . . . . . . Ignored by Resistances 2905 | . 34 175 10 . 180 822 38 226 207 494 719 Regen/Repaired (Parts) 462 | . . . . . . 87 . . . 375 . Core Remaining (%) 86 | 100 94 . . . 76 75 . . . . . Volleys Fired 107 | . . 15 4 . 16 25 2 17 5 9 14 Largest 4 | . . 3 3 . 3 3 1 4 4 4 2 Hottest 304 | . . 156 156 . 159 169 75 279 304 200 121 Shots Fired 241 | . . 35 12 . 46 49 2 36 15 24 22 Gun 190 | . . 35 9 . 30 32 2 31 12 23 16 Cannon 43 | . . . 3 . 16 16 . 5 3 . . Launcher . | . . . . . . . . . . . . Special 8 | . . . . . . 1 . . . 1 6 Kinetic 29 | . . . 3 . 16 10 . . . . . Thermal 156 | . . 35 6 . 14 22 2 31 12 18 16 Explosive 7 | . . . . . . . . . . 1 6 Electromagnetic 48 | . . . 3 . 16 16 . 5 3 5 . Robot Hit Streak 31 | . . 19 17 . 8 31 1 15 8 14 26 Robot Miss Streak 2 | . . 1 1 . 2 1 1 2 2 1 . Penetration Max 1 | . . . . . 1 . . . . . . Secondary Targets 1 | . . . . . . . . . . 1 . Max Gunslinging Chain 1 | . . . . . . . . . . 1 . Shots Hit Robots 195 | . . 31 6 . 33 44 1 30 8 20 22 Core Hits 78 | . . 10 4 . 14 11 . 10 5 6 18 Critical Kills 1 | . . . . . . 1 . . . . . Critical Parts Destroyed . | . . . . . . . . . . . . Critical Strikes 15 | . . 3 . . 1 5 . . 1 2 3 Burn 12 | . . 3 . . 1 4 . . 1 2 1 Destroy 1 | . . . . . . 1 . . . . . Sever 2 | . . . . . . . . . . . 2 Melee Attacks . | . . . . . . . . . . . . Impact . | . . . . . . . . . . . . Slashing . | . . . . . . . . . . . . Piercing . | . . . . . . . . . . . . Sneak Attacks . | . . . . . . . . . . . . Combat Hostiles . | . . . . . . . . . . . . Follow-up Attacks . | . . . . . . . . . . . . Damage Inflicted 5004 | . . 396 131 . 552 826 21 698 181 324 1875 Guns 2763 | . . 394 61 . 340 598 21 665 133 324 227 Cannons 550 | . . . 70 . 212 204 . 33 31 . . Explosions 1367 | . . . . . . . . . . . 1367 Melee . | . . . . . . . . . . . . Ramming 56 | . . 2 . . . 24 . . 17 . 13 Kinetic 374 | . . . 20 . 179 175 . . . . . Thermal 2270 | . . 394 41 . 161 423 21 665 133 205 227 Explosive 1367 | . . . . . . . . . . . 1367 Electromagnetic 669 | . . . 70 . 212 204 . 33 31 119 . Impact . | . . . . . . . . . . . . Slashing 268 | . . . . . . . . . . . 268 Piercing . | . . . . . . . . . . . . Highest Corruption 1 | . . . . . . . . . . 1 1 Average Corruption 1 | . . . . . . . . . . 1 1 Corruption Purged . | . . . . . . . . . . . . Corruption Blocked . | . . . . . . . . . . . . Effects 3 | . . . . . . . . . . . 3 Message Errors 1 | . . . . . . . . . . . 1 Matter Fused 1 | . . . . . . . . . . . 1 Parts Fused 1 | . . . . . . . . . . . 1 Overload Shots . | . . . . . . . . . . . . Overflow Damage 108 | . . . . . 21 7 . . . . 80 Projectiles 39 | . . . . . 21 7 . . . . 11 Explosions 69 | . . . . . . . . . . . 69 Melee . | . . . . . . . . . . . . Knockbacks . | . . . . . . . . . . . . Impact . | . . . . . . . . . . . . Kinetic . | . . . . . . . . . . . . Secondary . | . . . . . . . . . . . . Self-Inflicted Damage 1 | . . . . . . . . . . . 1 Shots . | . . . . . . . . . . . . Rammed 1 | . . . . . . . . . . . 1 Targets Rammed 11 | . . 1 . . . 4 . . 2 . 4 Kicked 10 | . . 1 . . . 4 . . 2 . 3 Crushed . | . . . . . . . . . . . . Highest Temperature 720 | . . 508 252 . 496 473 348 720 519 133 26 Average Temperature 183 | . . 215 107 . 203 167 148 202 287 51 12 Received Heat Transfer 2150 | . 24 147 . . 39 835 . 243 165 276 421 Effects 96 | . . 4 . . 8 27 4 44 9 . . Shutdowns 42 | . . 2 . . 3 16 3 15 3 . . Energy Bleed 9 | . . 1 . . 1 1 1 5 . . . Interference 18 | . . . . . 2 4 . 8 4 . . Matter Decay 4 | . . 1 . . 1 . . 2 . . . Short Circuit 5 | . . . . . . 2 . 2 1 . . Damage (minor) 6 | . . . . . 1 2 . 3 . . . Damage (major) 10 | . . . . . . 2 . 7 1 . . Damage (core) 2 | . . . . . . . . 2 . . . Siege Activations . | . . . . . . . . . . . . Robots Corrupted 1 | . . . . . . 1 . . . . . Combat Hostiles 1 | . . . . . . 1 . . . . . Parts Fried . | . . . . . . . . . . . . Impact Corruptions . | . . . . . . . . . . . . Robots Melted 2 | . . 1 . . . . . 1 . . . Combat Hostiles 2 | . . 1 . . . . . 1 . . . Parts Melted 11 | . . 4 . . . 6 . . 1 . . Heat Transferred 6116 | . . 1369 111 . 444 1346 37 999 372 772 666 Parts Sabotaged . | . . . . . . . . . . . . Parts Stolen . | . . . . . . . . . . . . Parts Stripped . | . . . . . . . . . . . . Power Chain Reactions . | . . . . . . . . . . . . Alert | -11 -10 -9 -9 -7 -6 -6 -5 -5 -5 -5 -4 ------- Run | Yrd Mat Mat Min Zio Pro Fac Fac Upp Upp War Pro Peak Influence 374 | . 5 182 62 . . 374 215 . . . . Initial 102 | . . 1 50 . . 15 102 . . . . Average 62 | . 4 84 39 . . 68 117 . . . . Maximum Alert Level 1 | . . . . . . 1 1 . . . . Low Security (%) 95 | 100 100 100 100 . . 93 88 . . . . Level 1 4 | . . . . . . 6 11 . . . . Level 2 . | . . . . . . . . . . . . Level 3 . | . . . . . . . . . . . . Level 4 . | . . . . . . . . . . . . Level 5 . | . . . . . . . . . . . . High Security . | . . . . . . . . . . . . Max Security . | . . . . . . . . . . . . Squads Dispatched 9 | . . 1 . . . 7 . . . . 1 Investigation 1 | . . . . . . 1 . . . . . Extermination 2 | . . . . . . 2 . . . . . Reinforcement 1 | . . 1 . . . . . . . . . Assault 2 | . . . . . . 1 . . . . 1 Garrison 3 | . . . . . . 3 . . . . . Intercept . | . . . . . . . . . . . . Searches Triggered . | . . . . . . . . . . . . Construction Impeded . | . . . . . . . . . . . . Haulers Reinforced . | . . . . . . . . . . . . Active Scanning Responses . | . . . . . . . . . . . . Cargo Convoy Interrupts . | . . . . . . . . . . . . Stealth | -11 -10 -9 -9 -7 -6 -6 -5 -5 -5 -5 -4 --------- Run | Yrd Mat Mat Min Zio Pro Fac Fac Upp Upp War Pro Distress Signals 2 | . 1 . . . . . . . . 1 . Communications Jammed . | . . . . . . . . . . . . Distress Signals . | . . . . . . . . . . . . Times Spotted 150 | . 5 13 2 . 11 22 5 14 10 50 18 Peak Tracking Total 17 | . 5 7 2 . 3 6 2 9 5 17 7 Tactical Retreats 13 | . . 1 . . . 1 . 4 1 3 3 Traps | -11 -10 -9 -9 -7 -6 -6 -5 -5 -5 -5 -4 ------- Run | Yrd Mat Mat Min Zio Pro Fac Fac Upp Upp War Pro Traps Triggered 1 | . . . . . . 1 . . . . . Indirectly . | . . . . . . . . . . . . Trap Hack Attempts . | . . . . . . . . . . . . Triggered . | . . . . . . . . . . . . Disarmed . | . . . . . . . . . . . . Reprogrammed . | . . . . . . . . . . . . Reused . | . . . . . . . . . . . . Traps Extracted . | . . . . . . . . . . . . Installed . | . . . . . . . . . . . . Triggered 17 | . . . . . 1 . . . . 15 1 Machines | -11 -10 -9 -9 -7 -6 -6 -5 -5 -5 -5 -4 ---------- Run | Yrd Mat Mat Min Zio Pro Fac Fac Upp Upp War Pro Machines Disabled 9 | . . . . . . 9 . . . . . Max in Single Turn . | . . . . . . . . . . . . Garrison Access 1 | . . . . . . 1 . . . . . Machines Repaired . | . . . . . . . . . . . . Machines Dismantled . | . . . . . . . . . . . . Machines Sabotaged . | . . . . . . . . . . . . Overloaded Fab Kills . | . . . . . . . . . . . . Hacking | -11 -10 -9 -9 -7 -6 -6 -5 -5 -5 -5 -4 --------- Run | Yrd Mat Mat Min Zio Pro Fac Fac Upp Upp War Pro Machines Accessed 10 | . 1 . 1 . . 2 . . . 6 . Terminals 2 | . 1 . 1 . . . . . . . . Fabricators 1 | . . . . . . 1 . . . . . Repair Stations 1 | . . . . . . 1 . . . . . Recycling Units . | . . . . . . . . . . . . Scanalyzers . | . . . . . . . . . . . . Garrison Access . | . . . . . . . . . . . . Total Hacks 32 | . 3 . 6 . . 5 . . . 18 . Successful 27 | . 3 . 4 . . 2 . . . 18 . Failed 5 | . . . 2 . . 3 . . . . . Catastrophic . | . . . . . . . . . . . . Database Lockouts . | . . . . . . . . . . . . Manual 16 | . . . . . . 10 4 . . 2 . Terminals 9 | . 3 . 6 . . . . . . . . Fabricators 3 | . . . . . . 3 . . . . . Repair Stations 2 | . . . . . . 2 . . . . . Recycling Units . | . . . . . . . . . . . . Scanalyzers . | . . . . . . . . . . . . Garrison Access . | . . . . . . . . . . . . Terminal Hacks 25 | . 3 . 4 . . . . . . 18 . Record 24 | . 2 . 4 . . . . . . 18 . Zone Layout 1 | . 1 . . . . . . . . . . Fabricator Hacks . | . . . . . . . . . . . . Repair Station Hacks 2 | . . . . . . 2 . . . . . Scan Component 1 | . . . . . . 1 . . . . . Repair 1 | . . . . . . 1 . . . . . Recycling Unit Hacks . | . . . . . . . . . . . . Scanalyzer . | . . . . . . . . . . . . Garrison Access Hacks . | . . . . . . . . . . . . Unauthorized Hacks . | . . . . . . . . . . . . Terminals . | . . . . . . . . . . . . Fabricators . | . . . . . . . . . . . . Repair Stations . | . . . . . . . . . . . . Recycling Units . | . . . . . . . . . . . . Scanalyzers . | . . . . . . . . . . . . Garrison Access . | . . . . . . . . . . . . Data Cores Recovered 1 | . . . . . . . 1 . . . . Used . | . . . . . . . . . . . . Hacking Detections 3 | . 1 . 1 . . 1 . . . . . Full Trace Events . | . . . . . . . . . . . . Feedback Events . | . . . . . . . . . . . . Feedback Blocked . | . . . . . . . . . . . . Robot Schematics Acquired 3 | . . . . 3 . . . . . . . Robots Built . | . . . . . . . . . . . . Authchips . | . . . . . . . . . . . . Time . | . . . . . . . . . . . . Total Robot Build Rating . | . . . . . . . . . . . . Part Schematics Acquired 13 | . . . . 13 . . . . . . . Parts Built . | . . . . . . . . . . . . Authchips . | . . . . . . . . . . . . Time . | . . . . . . . . . . . . Total Part Build Rating . | . . . . . . . . . . . . Parts Repaired 1 | . . . . . . 1 . . . . . Time 32 | . . . . . . 32 . . . . . Parts Recycled . | . . . . . . . . . . . . Recycled Matter . | . . . . . . . . . . . . Retrieved Matter . | . . . . . . . . . . . . Retrieved Components . | . . . . . . . . . . . . Parts Scanalyzed . | . . . . . . . . . . . . Part Schematics Acquired . | . . . . . . . . . . . . Parts Damaged . | . . . . . . . . . . . . Bothacking | -11 -10 -9 -9 -7 -6 -6 -5 -5 -5 -5 -4 ------------ Run | Yrd Mat Mat Min Zio Pro Fac Fac Upp Upp War Pro Used RIF Installer . | . . . . . . . . . . . . Robots Hacked 1 | . . . . . . 1 . . . . . Non-combat 1 | . . . . . . 1 . . . . . Combat . | . . . . . . . . . . . . Robot Hacks Applied 1 | . . . . . . 1 . . . . . parse_system 1 | . . . . . . 1 . . . . . Relay Couplers Released 3 | . . . . . . 3 . . . . . Machine Destruction 3 | . . . . . . 3 . . . . . Fabnet Peak Effective % . | . . . . . . . . . . . . Robots Rewired . | . . . . . . . . . . . . Allies Hacked . | . . . . . . . . . . . . Hacks Repelled . | . . . . . . . . . . . . Allies | -11 -10 -9 -9 -7 -6 -6 -5 -5 -5 -5 -4 -------- Run | Yrd Mat Mat Min Zio Pro Fac Fac Upp Upp War Pro Total Allies 16 | . . . . 6 . 7 3 . . . . Largest Group 7 | . . . . 6 6 7 3 3 . . . Highest-Rated Group 224 | . . . . 201 201 224 210 210 . . . Highest-Rated Ally 70 | . . . . 40 40 70 70 70 . . . Zionite Dispatches 3 | . . . . . . 2 1 . . . . Light 2 | . . . . . . 1 1 . . . . Fire 1 | . . . . . . 1 . . . . . Total Orders . | . . . . . . . . . . . . Ally Attacks 103 | . . . . . 24 49 13 17 . . . Total Damage 2432 | . . . . . 268 1508 315 341 . . . Kills 18 | . . . . . 2 11 4 1 . . . Allies Corrupted 3 | . . . . . . 3 . . . . . Allies Melted . | . . . . . . . . . . . . Intel | -11 -10 -9 -9 -7 -6 -6 -5 -5 -5 -5 -4 ------- Run | Yrd Mat Mat Min Zio Pro Fac Fac Upp Upp War Pro Robot Analysis Total . | . . . . . . . . . . . . Derelict Logs Recovered 5 | . . . . . 1 . . 2 2 . . Drone Launches . | . . . . . . . . . . . . Drone Recoveries . | . . . . . . . . . . . . Exploration | -11 -10 -9 -9 -7 -6 -6 -5 -5 -5 -5 -4 ------------- Run | Yrd Mat Mat Min Zio Pro Fac Fac Upp Upp War Pro Turns Passed 7200 | 128 114 338 580 939 490 1514 209 1028 424 1206 230 Spaces Moved 5237 | 97 96 202 460 770 353 1018 150 733 291 952 115 Core 34 | 7 . . . . . . . . . . 27 Treads . | . . . . . . . . . . . . Legs 5203 | 90 96 202 460 770 353 1018 150 733 291 952 88 Wheels . | . . . . . . . . . . . . Hover . | . . . . . . . . . . . . Flight . | . . . . . . . . . . . . Fastest Speed 50 | 50 120 120 120 120 120 120 120 122 122 122 122 Average Speed 125 | 114 120 120 120 120 120 130 125 130 139 122 161 Slowest Speed 400 | 120 120 120 120 120 120 260 260 193 193 123 400 Overloaded Moves . | . . . . . . . . . . . . Propulsion Burnouts . | . . . . . . . . . . . . Robots Hopped . | . . . . . . . . . . . . Cave-ins Triggered . | . . . . . . . . . . . . Exploration Rate (%) 42 | 4 19 25 77 78 62 15 5 80 48 80 18 Regions Visited 11 Branch Regions 7 Pre-discovered Areas 1 | . . . . . . . . 1 . . . Known Exits Taken 10 | 1 1 1 . 1 1 1 1 1 1 1 . Unknown Exits Taken 1 | . . . 1 . . . . . . . . Scrap Searched 11 | . . . 1 1 2 . . 5 2 . . Spaces Dug . | . . . . . . . . . . . . Terrain Destroyed 86 | . . . . . . . . 1 . . 85 Melee . | . . . . . . . . . . . . Projectile 1 | . . . . . . . . 1 . . . AOE 85 | . . . . . . . . . . . 85 Terrain Rammed . | . . . . . . . . . . . . Walls Destroyed . | . . . . . . . . . . . . Machines Disabled . | . . . . . . . . . . . . Actions | -11 -10 -9 -9 -7 -6 -6 -5 -5 -5 -5 -4 --------- Run | Yrd Mat Mat Min Zio Pro Fac Fac Upp Upp War Pro Total 5620 | 110 95 264 479 786 386 1155 165 770 298 976 136 Wait 162 | 6 . 44 . 9 3 87 1 2 1 7 2 Move 5226 | 96 95 201 459 769 352 1017 149 732 290 951 115 Hop . | . . . . . . . . . . . . Pick Up 16 | 1 . . 1 1 1 2 2 5 . 3 . Fast Attach 38 | 6 . 3 4 1 1 6 8 6 . 3 . Attach 10 | . . . . . . 7 2 . . . 1 Detach 4 | . . . . . 1 3 . . . . . Swap 24 | 1 . . 6 1 6 4 1 4 . 1 . Drop 20 | . . . 5 3 6 . . 4 . 2 . Fire 107 | . . 15 4 . 16 25 2 17 5 9 14 Melee . | . . . . . . . . . . . . Ram 1 | . . . . . . . . . . . 1 Kick 10 | . . 1 . . . 4 . . 2 . 3 Crush . | . . . . . . . . . . . . Escape Stasis . | . . . . . . . . . . . . Rewire 2 | . . . . 2 . . . . . . . Trap . | . . . . . . . . . . . . Miscellaneous . | . . . . . . . . . . . . Route ------- -11/Scrapyard -10/Materials -9/Materials -9/Mines (discovered 3 exits: *Mat x2 / *Zio) -7/Zion -6/Proximity Caves -6/Factory -5/Factory -5/Upper Caves -5/Upper Caves -5/Warlord -4/Proximity Caves History --------- Turn | Location | Event 5 | -11/Scrapyard | Identified exit to Materials 5 | -11/Scrapyard | Discovered exit to Materials (range 16) 129 | -11/Scrapyard | Entered Materials 129 | -10/Materials | Evolved 1 slot: Propulsion x1 141 | -10/Materials | Identified exit to Materials 141 | -10/Materials | Discovered exit to Materials (range 17) 243 | -10/Materials | Entered another Materials area 243 | -9/Materials | Evolved 2 slots: Power x1, Weapon x1 301 | -9/Materials | Build established: Hacker-Mutant 563 | -9/Materials | Identified exit to Mines 563 | -9/Materials | Discovered exit to Mines (range 15) 581 | -9/Materials | Entered Mines 709 | -9/Mines | Build established: Hacker-Gunner 739 | -9/Mines | Identified exit to Materials 739 | -9/Mines | Discovered exit to Materials (range 7) 907 | -9/Mines | Discovered exit to Materials (range 5) 1020 | -9/Mines | Found a damaged Exp. Sensor Array with a note attached 1023 | -9/Mines | Found Prototype Device 1023 | -9/Mines | Identified Exp. Sensor Array 1129 | -9/Mines | A Derelict revealed a hidden shortcut to a safe place 1161 | -9/Mines | Entered Zion 1283 | -7/Zion | Gained Derelict followers 1330 | -7/Zion | Build established: Hacker-Skirmisher 1611 | -7/Zion | Met Imprinter 1636 | -7/Zion | Imprinted 1639 | -7/Zion | Declared Zion's savior 1886 | -7/Zion | Found Relay Coupler [Programmer] 2011 | -7/Zion | Identified exit to Proximity Caves 2011 | -7/Zion | Discovered exit to Proximity Caves (range 15) 2100 | -7/Zion | Entered Proximity Caves 2100 | -6/Proximity Caves | Accompanied by 6 allies 2320 | -6/Proximity Caves | Learned Factory emergency access door positions 2423 | -6/Proximity Caves | Attracted the attention of an 0b10 checkpoint 2573 | -6/Proximity Caves | Identified exit to Factory 2573 | -6/Proximity Caves | Discovered exit to Factory (range 8) 2590 | -6/Proximity Caves | Entered Factory 2590 | -6/Factory | Accompanied by 3 allies 2590 | -6/Factory | Evolved 6 slots: Power x2, Propulsion x1, Utility x2, Weapon x1 2823 | -6/Factory | Zion Fire squad teleported in 3496 | -6/Factory | Lost 7 allies 3628 | -6/Factory | Repaired Imp. Aluminum Leg 3707 | -6/Factory | Garrison activated, responded to threat 3917 | -6/Factory | Zion Light squad teleported in 4055 | -6/Factory | Lost 3 allies 4096 | -6/Factory | Identified exit to Factory 4096 | -6/Factory | Discovered exit to Factory (range 7) 4104 | -6/Factory | Entered another Factory area 4104 | -5/Factory | Evolved 2 slots: Propulsion x1, Utility x1 4126 | -5/Factory | Lost 10 parts (4p3n1u2w) 4212 | -5/Factory | Zion Light squad teleported in 4288 | -5/Factory | Identified exit to Upper Caves 4288 | -5/Factory | Discovered exit to Upper Caves (range 20) 4313 | -5/Factory | Entered Upper Caves 4313 | -5/Upper Caves | Accompanied by 3 allies 4370 | -5/Upper Caves | Lost 3 allies 4964 | -5/Upper Caves | Learned location of Armory (-3) 5036 | -5/Upper Caves | Build established: Scavenger-Skirmisher 5045 | -5/Upper Caves | Attracted the attention of an 0b10 outpost 5302 | -5/Upper Caves | Identified exit to Upper Caves 5302 | -5/Upper Caves | Discovered exit to Upper Caves (range 15) 5341 | -5/Upper Caves | Entered another Upper Caves area 5342 | -5/Upper Caves | Identified exit to Warlord 5346 | -5/Upper Caves | Learned Factory security intel 5364 | -5/Upper Caves | Build established: Hacker-Skirmisher 5500 | -5/Upper Caves | Encountered a Warlord checkpoint 5519 | -5/Upper Caves | Learned location of 2 exits from Factory 5697 | -5/Upper Caves | Spotted B-75 Beast 5765 | -5/Upper Caves | Entered Warlord 5796 | -5/Warlord | Lost 4 parts (1p3w) 5901 | -5/Warlord | Found Prototype Special Weapon 5901 | -5/Warlord | Identified RU-N14's Throwing Claymores v3 6134 | -5/Warlord | Rebuked by Warlord 6159 | -5/Warlord | Warlord's base attacked by MAIN.C 6212 | -5/Warlord | Learned Research security intel 6212 | -5/Warlord | Learned Armory scanalyzer intel 6213 | -5/Warlord | Learned 4 Armory zone layouts 6213 | -5/Warlord | Learned 4 Armory zone layouts 6213 | -5/Warlord | Learned 4 Quarantine zone layouts 6215 | -5/Warlord | Learned Quarantine emergency access door positions 6250 | -5/Warlord | Found Prototype Device 6457 | -5/Warlord | Warlord forces counterattacked 6485 | -5/Warlord | Spotted Executioner 6536 | -5/Warlord | Lost 4 allies 6649 | -5/Warlord | Found RU-N14's Throwing Claymores v3 6704 | -5/Warlord | Spotted Executioner 6705 | -5/Warlord | Spotted Executioner 6765 | -5/Warlord | Lost 5 allies 6788 | -5/Warlord | Core integrity fell below 50% 6834 | -5/Warlord | Warlord base infiltrated, sounded retreat 6835 | -5/Warlord | Enhanced Grunt warped into view 6835 | -5/Warlord | Enhanced Grunt warped into view 6835 | -5/Warlord | Enhanced Grunt warped into view 6835 | -5/Warlord | Enhanced Demolisher warped into view 6835 | -5/Warlord | Enhanced Demolisher warped into view 6835 | -5/Warlord | Enhanced Demolisher warped into view 6839 | -5/Warlord | Spotted Striker 6955 | -5/Warlord | Identified exit to Proximity Caves 6955 | -5/Warlord | Discovered exit to Proximity Caves (range 12) 6971 | -5/Warlord | Entered Proximity Caves 7083 | -4/Proximity Caves | Attracted the attention of an 0b10 outpost 7141 | -4/Proximity Caves | Lost 11 parts (3p5n2u1w) 7187 | -4/Proximity Caves | Core integrity fell below 20% 7201 | -4/Proximity Caves | Destroyed by G-67 Veteran with Field Laser Last Messages --------------- 07152_ H-77 Assassin destroyed. 07154_ Slug penetrates Wall. 07154_ Imp. Heat Sink destroyed. 07157_ Slug penetrates Wall. 07164_ Penetrated by Slug. 07164_ Slammed into H-77 Assassin. 07170_ Penetrated by Slug. 07172_ H-77 Assassin destroyed. 07173_ The unstable cave ceiling collapses. 07185_ C-30 ARC bursts open, deploying its payload. 07185_ G-73 Enforcer unfolds itself. 07185_ G-67 Veteran unfolds itself. 07185_ L-61 Swordsman unfolds itself. 07185_ G-67 Veteran unfolds itself. 07185_ I-47 Archangel unfolds itself. 07189_ The unstable cave ceiling collapses. 07195_ Backup Laser III destroyed. 07195_ Critical hit (Burn: +37). [Achievement: 5k Club] Map ----- +----------------------------------------------------+ | ?????????????????????????????????????????????????? | | ????###??????????????????????????????????????????? | | ??## ???????????????????????????????????????????? | | ?# ????????????????????????????????????????????? | | ? ?????????????????????????????????????????????? | | # ??????? ?????????????????????????????????????? | | ???????? ?????????????????????????????????????? | | ????????# ?????????????????????????????????????? | | #????????# ?#???????????????????????????????????? | | #????????# # ???????????????????????????????????? | | #????????# ???????????????????????????????????? | | #??????### ????????????????????????????????????? | | #?????## ????????????????????????????????????? | | #?????# ????????????????????? ??????????????? | | ??????? ???????????????????? #????????????? | | ???????# #?##???????##???????# #????????????? | | ???????? ## ##?????? #?????? #????????????? | | ????????? $ #???? ##??? ##???????????? | | ?????????# ### #??# #???????????? | | ?????###?# ### #???????????? | | ????## ### ?????????????? | | ????# ####???? ???????????????? | | ????# ### ## #??????? ?????????????????? | | ????# ### ## #???????# ???????????????????? | | ?#### ## #???????# #????????????????????? | | ?# # ####????#@ #?????????????????????? | | ?# ## ##??#l #?????????????????????? | | ?# ### ### #??# #####?????????????????? | | ## #?## ##?# #### ##????????????????? | | ## #??#####?## #?# ##### #?????????? | | #???????## #?# g #???????????? | | ####??????## #??# g ##??????????? | | #????????## ##?# g i #??????????? | | #???????## #?# % ????????? | | #??????## ### ## ????????? | | ######## ## % # ####?# ?????????? | | %% ## #???? #?????????? | | ######## ### # ##????? ??????????? | | ???????## ##?## ### #??????### ??????????? | | ????????######???#####?###??????????##???????????? | | ?????????????????????????????????????????????????? | | ?????????????????????????????????????????????????? | | ?????????????????????????????????????????????????? | | ?????????????????????????????????????????????????? | | ?????????????????????????????????????????????????? | | ?????????????????????????????????????????????????? | | ?????????????????????????????????????????????????? | | ?????????????????????????????????????????????????? | | ?????????????????????????????????????????????????? | | ?????????????????????????????????????????????????? | +----------------------------------------------------+ Best States ------------- Heat Dissipation 54 Energy Generation 52 Energy Capacity 705 Matter Stores 650 Matter Capacity 650 Sight Range 20 Robot Scan Range 20 Terrain Scan Density 335 Armor Coverage 150 Resistance: KI 35 Resistance: TH 35 Resistance: EX 35 Resistance: EM 35 Resistance: I 35 Resistance: S 35 Resistance: P 35 Evasion (%) 55 Targeting Accuracy 5 Offensive Hacking 20 Item Schematics ----------------- Microactuators | -7/Zion | Archive Coil Gun | -7/Zion | Archive Great Axe | -7/Zion | Archive Gravmag System | -7/Zion | Archive Hpw. Shock Rifle | -7/Zion | Archive Imp. Kinecellerator | -7/Zion | Archive Matter Compressor | -7/Zion | Archive Remote Datajack | -7/Zion | Archive Xenon Bombardment Thruster | -7/Zion | Archive Coolant Injector | -7/Zion | Archive Imp. Hardlight Generator | -7/Zion | Archive Imp. Salvage Targeting Computer | -7/Zion | Archive Adv. Drone Bay | -7/Zion | Archive Robot Schematics ------------------ Y-54 Guardian | -7/Zion | Archive M-28 Smith | -7/Zion | Archive A-02 Transporter | -7/Zion | Archive Fabricated ------------ Nothing Alien Tech Used ----------------- None Achievements -------------- 5k Club A Powerful Ally? Adventurer Charge!!! I Spy I'm Back, Baby! It's Just You Knowing Is Half The Battle Librarian Risk Taker Robot Respite Serviceable Loadout The More The Merrier The One Tourist Troublemaker Challenges ------------ None Game ------ Seed DimensionalDamperPlatform Manual? 0 Play Time 01:51:46 Cumulative 4.9 hours Start 2024.09.19 @ 21:08:31 End 2024.09.20 @ 01:54:39 Sessions 1 Manual Loads 0 Difficulty Explorer Special Mode None Game No. 7 Rogue 0 Adventurer 0 Explorer 7 Win Type - Total 0 Types 0/0/0/0/0/0/0/0/0 Lore% 4 Gallery% 9 Achievement% 13 Wizard Run 0 Options --------- Layout 1 ASCII 0 Keyboard 0 Movement Numpad Keybinds 0 Fullscreen 2 Font 24/Smallcaps Map View 50x35 Zoom Use 1% Tactical HUD 1 Map Filters NONE Filters NONE Steam 0 RUN: 5aeca336-6b9f-4a62-8175-b0ce2ef4fb47